lending/lending_fUSD_20250122
["ID","MTS","AMOUNT","RATE_DAILY","PERIOD"]
[349978428,1737546640218,-500.0,0.00019981,2]
[349978429,1737546640227,-659.43,0.00019981,2]
[349978430,1737546640236,-600.23,0.00019981,2]
[349978431,1737546640246,-500.0,0.00019981,2]
[349978432,1737546640255,-500.0,0.00019981,2]
[349978434,1737546640264,-500.0,0.00019981,2]
[349978435,1737546640275,-687.02,0.00019981,2]
[349978436,1737546640284,-157.37539926,0.00019981,2]
[349978437,1737546640297,-342.62460074,0.00019981,2]
[349978438,1737546640308,-500.0,0.00019981,2]
[349978439,1737546640318,-99.05539926,0.00019981,2]
[349978440,1737546640337,-435.60460074,0.00019981,2]
[349978441,1737546640347,-500.0,0.00019981,2]
[349978442,1737546640357,-500.0,0.00019981,2]
[349978443,1737546640366,-500.0,0.00019981,2]
[349978444,1737546640375,-500.0,0.00019981,2]
[349978445,1737546640386,-500.0,0.00019981,2]
[349978446,1737546640395,-500.0,0.00019981,2]
[349978447,1737546640405,-500.0,0.00019981,2]
[349978448,1737546640415,-500.0,0.00019981,2]
[349978449,1737546640424,-277.36094024,0.00019981,2]
[349978450,1737546640434,-500.0,0.00019981,2]
[349978451,1737546640443,-500.0,0.00019981,2]
[349978452,1737546640452,-500.0,0.00019981,2]
[349978453,1737546640461,-500.0,0.00019981,2]
[349978454,1737546640470,-500.0,0.00019981,2]
[349978455,1737546640479,-163.44455,0.00019981,2]
[349978456,1737546640489,-184.02848752,0.00019981,2]
[349978457,1737546640498,-500.0,0.00019981,2]
[349978458,1737546640507,-500.0,0.00019981,2]
[349978459,1737546640516,-500.0,0.00019981,2]
[349978460,1737546640526,-500.0,0.00019981,2]
[349978461,1737546640535,-830.9,0.00019981,2]
[349978462,1737546640544,-157.610871,0.00019981,2]
[349978463,1737546640553,-500.0,0.00019981,2]
[349978464,1737546640562,-500.0,0.00019981,2]
[349978465,1737546640571,-500.0,0.00019981,2]
[349978466,1737546640580,-759.51,0.00019981,2]
[349978467,1737546640589,-1426.85,0.00019981,2]
[349978468,1737546640598,-500.0,0.00019981,2]
[349978469,1737546640606,-500.0,0.00019981,2]
[349978470,1737546640615,-500.0,0.00019981,2]
[349978471,1737546640624,-806.94,0.00019981,2]
[349978472,1737546640633,-500.0,0.00019981,2]
[349978473,1737546640643,-1619.77,0.00019981,2]
[349978474,1737546640652,-1204.95,0.00019981,2]
[349978475,1737546640661,-500.0,0.00019981,2]
[349978476,1737546640670,-1121.63,0.00019981,2]
[349978477,1737546640679,-1173.08,0.00019981,2]
[349978478,1737546640688,-2583.38,0.00019981,2]
[349978479,1737546640697,-633.4,0.00019981,2]
[349978480,1737546640706,-1133.84,0.00019981,2]
[349978481,1737546640715,-4978.96,0.00019981,2]
[349978482,1737546640724,-500.0,0.00019981,2]
[349978483,1737546640733,-500.0,0.00019981,2]
[349978484,1737546640742,-500.0,0.00019981,2]
[349978485,1737546640751,-677.55,0.00019981,2]
[349978486,1737546640759,-500.0,0.00019981,2]
[349978487,1737546640769,-500.0,0.00019981,2]
[349978488,1737546640778,-500.0,0.00019981,2]
[349978489,1737546640787,-728.05,0.00019981,2]
[349978490,1737546640796,-787.16,0.00019981,2]
[349978491,1737546640806,-500.0,0.00019981,2]
[349978492,1737546640815,-880.93,0.00019981,2]
[349978493,1737546640824,-2814.57,0.00019981,2]
[349978494,1737546640834,-874.64,0.00019981,2]
[349978495,1737546640843,-1125.51,0.00019981,2]
[349978496,1737546640852,-1323.8,0.00019981,2]
[349978497,1737546640860,-500.0,0.00019981,2]
[349978498,1737546640869,-940.58,0.00019981,2]
[349978499,1737546640878,-1228.65,0.00019981,2]
[349978500,1737546640888,-610.2,0.00019981,2]
[349978501,1737546640897,-1735.39,0.00019981,2]
[349978502,1737546640906,-500.0,0.00019981,2]
[349978503,1737546640916,-649.66,0.00019981,2]
[349978504,1737546640925,-2053.5,0.00019981,2]
[349978505,1737546640934,-571.23,0.00019981,2]
[349978506,1737546640943,-500.0,0.00019981,2]
[349978507,1737546640952,-379.25408762,0.00019981,2]
[349978508,1737546641168,-198.88591238,0.00019981,2]
[349978509,1737546641178,-775.56,0.00019981,2]
[349978510,1737546641187,-75.20215432,0.00019981,2]
[349978543,1737546642729,-1799.03784568,0.00019981,2]
[349978545,1737546642739,-500.0,0.00019981,2]
[349978547,1737546642748,-500.0,0.00019981,2]
[349978549,1737546642757,-165.430026,0.00019981,2]
[349978550,1737546642766,-500.0,0.00019981,2]
[349978551,1737546642775,-500.0,0.00019981,2]
[349978552,1737546642784,-500.0,0.00019981,2]
[349978553,1737546642794,-500.0,0.00019981,2]
[349978554,1737546642803,-500.0,0.00019981,2]
[349978555,1737546642812,-500.0,0.00019981,2]
[349978556,1737546642822,-500.0,0.00019981,2]
[349978557,1737546642831,-840.03,0.00019981,2]
[349978558,1737546642841,-754.88,0.00019981,2]
[349978559,1737546642850,-500.0,0.00019981,2]
[349978560,1737546642859,-770.49,0.00019981,2]
[349978561,1737546642868,-1624.22,0.00019981,2]
[349978562,1737546642877,-2677.62,0.00019981,2]
[349978563,1737546642887,-500.0,0.00019981,2]
[349978564,1737546642896,-1072.02,0.00019981,2]
[349978565,1737546642905,-790.23,0.00019981,2]
[349978566,1737546642915,-500.0,0.00019981,2]
[349978567,1737546642924,-681.13,0.00019981,2]
[349978568,1737546642933,-500.0,0.00019981,2]
[349978569,1737546642942,-500.0,0.00019981,2]
[349978570,1737546642951,-500.0,0.00019981,2]
[349978571,1737546642961,-688.34,0.00019981,2]
[349978572,1737546642970,-500.0,0.00019981,2]
[349978573,1737546642979,-500.0,0.00019981,2]
[349978574,1737546642988,-1973.8,0.00019981,2]
[349978575,1737546642997,-300.13978384,0.00019981,2]
[349978576,1737546643008,-3053.45,0.00019981,2]
[349978577,1737546643018,-157.610868,0.00019981,2]
[349978578,1737546643027,-884.23,0.00019981,2]
[349978579,1737546643037,-1162.01,0.00019981,2]
[349978580,1737546643046,-500.0,0.00019981,2]
[349978581,1737546643056,-2721.29,0.00019981,2]
[349978582,1737546643065,-500.0,0.00019981,2]
[349978583,1737546643074,-1593.53,0.00019981,2]
[349978584,1737546643083,-500.0,0.00019981,2]
[349978585,1737546643092,-517.78,0.00019981,2]
[349978586,1737546643101,-1029.46,0.00019981,2]
[349978588,1737546643111,-500.0,0.00019981,2]
[349978589,1737546643120,-500.0,0.00019981,2]
[349978590,1737546643129,-500.0,0.00019981,2]
[349978591,1737546643138,-822.29,0.00019981,2]
[349978592,1737546643148,-500.0,0.00019981,2]
[349978594,1737546643157,-500.0,0.00019981,2]
[349978596,1737546643167,-817.67,0.00019981,2]
[349978597,1737546643177,-500.0,0.00019981,2]
[349978599,1737546643186,-604.74,0.00019981,2]
[349978600,1737546643195,-1000.0,0.00019981,2]
[349978601,1737546643205,-150.989223,0.00019981,2]
[349978603,1737546643214,-1568.88,0.00019981,2]
[349978605,1737546643225,-500.0,0.00019981,2]
[349978606,1737546643235,-206.53887557,0.00019981,2]
[349978607,1737546643244,-500.0,0.00019981,2]
[349978608,1737546643253,-860.25,0.00019981,2]
[349978609,1737546643262,-500.0,0.00019981,2]
[349978610,1737546643271,-584.35,0.00019981,2]
[349978611,1737546643280,-500.0,0.00019981,2]
[349978612,1737546643295,-500.0,0.00019981,2]
[349978613,1737546643312,-1029.28,0.00019981,2]
[349978614,1737546643331,-1488.68,0.00019981,2]
[349978615,1737546643343,-500.0,0.00019981,2]
[349978616,1737546643352,-500.0,0.00019981,2]
[349978617,1737546643362,-597.69,0.00019981,2]
[349978618,1737546643371,-500.0,0.00019981,2]
[349978619,1737546643381,-582.08,0.00019981,2]
[349978620,1737546643390,-2928.36,0.00019981,2]
[349978621,1737546643400,-629.85,0.00019981,2]
[349978622,1737546643409,-500.0,0.00019981,2]
[349978623,1737546643418,-500.0,0.00019981,2]
[349978624,1737546643428,-1778.24,0.00019981,2]
[349978625,1737546643437,-1141.9,0.00019981,2]
[349978626,1737546643447,-1685.12,0.00019981,2]
[349978627,1737546643457,-500.0,0.00019981,2]
[349978628,1737546643466,-500.0,0.00019981,2]
[349978629,1737546643475,-500.0,0.00019981,2]
[349978630,1737546643485,-500.0,0.00019981,2]
[349978631,1737546643494,-500.0,0.00019981,2]
[349978632,1737546643503,-1692.44,0.00019981,2]
[349978633,1737546643512,-1404.53,0.00019981,2]
[349978634,1737546643522,-500.0,0.00019981,2]
[349978635,1737546643532,-500.0,0.00019981,2]
[349978636,1737546643541,-157.610869,0.00019981,2]
[349978637,1737546643550,-500.0,0.00019981,2]
[349978638,1737546643559,-500.0,0.00019981,2]
[349978639,1737546643568,-500.0,0.00019981,2]
[349978640,1737546643577,-626.22,0.00019981,2]
[349978641,1737546643586,-500.0,0.00019981,2]
[349978642,1737546643595,-553.98,0.00019981,2]
[349978643,1737546643604,-500.0,0.00019981,2]
[349978644,1737546643614,-564.27,0.00019981,2]
[349978645,1737546643623,-500.0,0.00019981,2]
[349978646,1737546643632,-500.0,0.00019981,2]
[349978647,1737546643641,-500.0,0.00019981,2]
[349978648,1737546643650,-243.3892939,0.00019981,2]
[349978649,1737546643659,-500.0,0.00019981,2]
[349978650,1737546643668,-912.85,0.00019981,2]
[349978651,1737546643677,-1621.57,0.00019981,2]
[349978652,1737546643686,-500.0,0.00019981,2]
[349978653,1737546643696,-500.0,0.00019981,2]
[349978654,1737546643705,-500.0,0.00019981,2]
[349978655,1737546643714,-1095.57,0.00019981,2]
[349978656,1737546643723,-564.63,0.00019981,2]
[349978657,1737546643732,-500.0,0.00019981,2]
[349978658,1737546643742,-2371.96,0.00019981,2]
[349978659,1737546643751,-500.0,0.00019981,2]
[349978660,1737546643761,-500.0,0.00019981,2]
[349978661,1737546643772,-500.0,0.00019981,2]
[349978662,1737546643783,-500.0,0.00019981,2]
[349978663,1737546643792,-500.0,0.00019981,2]
[349978664,1737546643801,-500.0,0.00019981,2]
[349978665,1737546643810,-500.0,0.00019981,2]
[349978666,1737546643819,-950.32,0.00019981,2]
[349978667,1737546643828,-629.86,0.00019981,2]
[349978668,1737546643838,-987.56,0.00019981,2]
[349978669,1737546643848,-369.14672089,0.00019981,2]
[349978670,1737546643858,-500.0,0.00019981,2]
[349978671,1737546643867,-500.0,0.00019981,2]
[349978672,1737546643876,-500.0,0.00019981,2]
[349978673,1737546643885,-638.35,0.00019981,2]
[349978674,1737546643894,-1220.25,0.00019981,2]
[349978675,1737546643903,-500.0,0.00019981,2]
[349978676,1737546643912,-500.0,0.00019981,2]
[349978677,1737546643921,-500.0,0.00019981,2]
[349978678,1737546643930,-500.0,0.00019981,2]
[349978679,1737546643939,-500.0,0.00019981,2]
[349978680,1737546643949,-500.0,0.00019981,2]
[349978681,1737546643958,-501.65663986,0.00019981,2]
[349978682,1737546643967,-1376.38,0.00019981,2]
[349978683,1737546643977,-431.77912615,0.00019981,2]
[349978684,1737546643987,-491.11048082,0.00019982,2]
[349978685,1737546643997,-500.0,0.00019982,2]
[349978686,1737546644006,-500.0,0.00019982,2]
[349978687,1737546644019,-500.0,0.00019982,2]
[349978688,1737546644030,-500.0,0.00019982,2]
[349978689,1737546644038,-500.0,0.00019982,2]
[349978690,1737546644049,-500.0,0.00019982,2]
[349978691,1737546644061,-500.0,0.00019982,2]
[349978692,1737546644072,-500.0,0.00019982,2]
[349978693,1737546644082,-500.0,0.00019982,2]
[349978694,1737546644092,-500.0,0.00019982,2]
[349978695,1737546644104,-500.0,0.00019982,2]
[349978696,1737546644113,-500.0,0.00019982,2]
[349978697,1737546644122,-500.0,0.00019982,2]
[349978698,1737546644132,-500.0,0.00019982,2]
[349978699,1737546644141,-500.0,0.00019982,2]
[349978700,1737546644151,-500.0,0.00019982,2]
[349978701,1737546644161,-519.16228559,0.00019982,2]
[349978702,1737546644170,-500.0,0.00019982,2]
[349978703,1737546644180,-500.0,0.00019982,2]
[349978704,1737546644190,-500.0,0.00019982,2]
[349978705,1737546644199,-500.0,0.00019982,2]
[349978706,1737546644209,-530.06,0.00019982,2]
[349978707,1737546644218,-183.23362216,0.00019982,2]
[349978708,1737546644228,-330.35594887,0.00019982,2]
[349978709,1737546644238,-500.0,0.00019982,2]
[349978710,1737546644247,-500.0,0.00019982,2]
[349978711,1737546644257,-500.0,0.00019982,2]
[349978712,1737546644266,-500.0,0.00019982,2]
[349978713,1737546644276,-552.04,0.00019982,2]
[349978714,1737546644284,-500.0,0.00019982,2]
[349978715,1737546644295,-500.0,0.00019982,2]
[349978716,1737546644305,-640.45,0.00019982,2]
[349978717,1737546644317,-500.0,0.00019982,2]
[349978718,1737546644326,-500.0,0.00019982,2]
[349978719,1737546644335,-519.33,0.00019982,2]
[349978720,1737546644345,-605.84274801,0.00019982,2]
[349978721,1737546644355,-500.0,0.00019982,2]
[349978722,1737546644364,-500.0,0.00019982,2]
[349978723,1737546644374,-500.0,0.00019982,2]
[349978724,1737546644383,-500.0,0.00019982,2]
[349978725,1737546644393,-500.0,0.00019982,2]
[349978726,1737546644402,-500.0,0.00019982,2]
[349978727,1737546644411,-500.0,0.00019982,2]
[349978728,1737546644421,-500.0,0.00019982,2]
[349978729,1737546644430,-500.0,0.00019982,2]
[349978730,1737546644440,-500.0,0.00019982,2]
[349978731,1737546644449,-500.0,0.00019982,2]
[349978732,1737546644459,-558.39,0.00019982,2]
[349978733,1737546644468,-500.0,0.00019982,2]
[349978734,1737546644478,-500.0,0.00019982,2]
[349978735,1737546644487,-500.0,0.00019982,2]
[349978736,1737546644496,-500.0,0.00019982,2]
[349978737,1737546644506,-500.0,0.00019982,2]
[349978738,1737546644515,-577.5,0.00019982,2]
[349978739,1737546644526,-704.14,0.00019982,2]
[349978740,1737546644535,-500.0,0.00019982,2]
[349978741,1737546644544,-500.0,0.00019982,2]
[349978742,1737546644553,-500.0,0.00019982,2]
[349978743,1737546644563,-500.0,0.00019982,2]
[349978744,1737546644572,-500.0,0.00019982,2]
[349978745,1737546644582,-804.03,0.00019982,2]
[349978746,1737546644591,-622.8,0.00019982,2]
[349978747,1737546644602,-847.32,0.00019982,2]
[349978748,1737546644611,-755.74,0.00019982,2]
[349978749,1737546644621,-500.0,0.00019982,2]
[349978750,1737546644630,-500.0,0.00019982,2]
[349978751,1737546644639,-610.82,0.00019982,2]
[349978752,1737546644648,-500.0,0.00019982,2]
[349978753,1737546644659,-500.0,0.00019982,2]
[349978754,1737546644671,-955.0,0.00020053,2]
[349978755,1737546644859,-445.02,0.00020082,2]
[349978756,1737546644869,-773.11,0.00020082,2]
[349978757,1737546644878,-919.71491604,0.00020105,2]
[349978758,1737546644888,-311.58,0.00020145,2]
[349978759,1737546644899,-1443.56760163,0.00020155,2]
[349978760,1737546644909,-169.43,0.00020245,2]
[349978761,1737546644919,-710.717897,0.00020255,2]
[349978762,1737546644929,-418.626739,0.00020255,2]
[349978763,1737546644938,-500.0,0.00020255,2]
[349978764,1737546644948,-500.0,0.00020255,2]
[349978765,1737546644958,-500.0,0.00020255,2]
[349978766,1737546644968,-500.0,0.00020255,2]
[349978767,1737546644977,-500.0,0.00020255,2]
[349978768,1737546644987,-500.0,0.00020255,2]
[349978769,1737546644997,-500.0,0.00020255,2]
[349978770,1737546645007,-528.14,0.00020255,2]
[349978771,1737546645017,-500.0,0.00020255,2]
[349978772,1737546645027,-500.0,0.00020255,2]
[349978773,1737546645037,-500.0,0.00020255,2]
[349978774,1737546645046,-500.0,0.00020255,2]
[349978775,1737546645056,-500.0,0.00020255,2]
[349978776,1737546645065,-576.61,0.00020255,2]
[349978777,1737546645075,-500.0,0.00020255,2]
[349978778,1737546645085,-500.0,0.00020255,2]
[349978779,1737546645095,-659.43,0.00020255,2]
[349978780,1737546645105,-600.23,0.00020255,2]
[349978781,1737546645116,-500.0,0.00020255,2]
[349978782,1737546645126,-500.0,0.00020255,2]
[349978783,1737546645136,-500.0,0.00020255,2]
[349978784,1737546645146,-687.02,0.00020255,2]
[349978785,1737546645156,-500.0,0.00020255,2]
[349978786,1737546645166,-534.66,0.00020255,2]
[349978787,1737546645175,-500.0,0.00020255,2]
[349978788,1737546645185,-500.0,0.00020255,2]
[349978789,1737546645195,-500.0,0.00020255,2]
[349978790,1737546645205,-500.0,0.00020255,2]
[349978791,1737546645215,-500.0,0.00020255,2]
[349978792,1737546645224,-500.0,0.00020255,2]
[349978793,1737546645234,-500.0,0.00020255,2]
[349978794,1737546645243,-500.0,0.00020255,2]
[349978795,1737546645253,-500.0,0.00020255,2]
[349978796,1737546645263,-500.0,0.00020255,2]
[349978797,1737546645272,-500.0,0.00020255,2]
[349978798,1737546645282,-500.0,0.00020255,2]
[349978799,1737546645292,-448.04409561,0.00020255,2]
[349978800,1737546645302,-500.0,0.00020255,2]
[349978801,1737546645315,-830.9,0.00020255,2]
[349978802,1737546645325,-500.0,0.00020255,2]
[349978803,1737546645335,-500.0,0.00020255,2]
[349978804,1737546645345,-759.51,0.00020255,2]
[349978805,1737546645355,-1426.85,0.00020255,2]
[349978806,1737546645364,-500.0,0.00020255,2]
[349978807,1737546645376,-500.0,0.00020255,2]
[349978808,1737546645386,-806.94,0.00020255,2]
[349978809,1737546645396,-1619.77,0.00020255,2]
[349978810,1737546645407,-1204.95,0.00020255,2]
[349978811,1737546645417,-1121.63,0.00020255,2]
[349978812,1737546645427,-1173.08,0.00020255,2]
[349978813,1737546645436,-2583.38,0.00020255,2]
[349978814,1737546645446,-633.4,0.00020255,2]
[349978815,1737546645456,-1133.84,0.00020255,2]
[349978816,1737546645466,-4978.96,0.00020255,2]
[349978817,1737546645481,-500.0,0.00020255,2]
[349978818,1737546645491,-308.51245247,0.00020255,2]
[349978819,1737546645500,-500.0,0.00020255,2]
[349978820,1737546645510,-677.55,0.00020255,2]
[349978822,1737546645519,-500.0,0.00020255,2]
[349978823,1737546645529,-500.0,0.00020255,2]
[349978824,1737546645539,-361.32699075,0.00020255,2]
[349978825,1737546645548,-728.05,0.00020255,2]
[349978826,1737546645557,-787.16,0.00020255,2]
[349978827,1737546645567,-500.0,0.00020255,2]
[349978828,1737546645576,-880.93,0.00020255,2]
[349978829,1737546645586,-2814.57,0.00020255,2]
[349978830,1737546645596,-874.64,0.00020255,2]
[349978831,1737546645605,-1125.51,0.00020255,2]
[349978832,1737546645615,-1323.8,0.00020255,2]
[349978833,1737546645624,-500.0,0.00020255,2]
[349978834,1737546645633,-940.58,0.00020255,2]
[349978835,1737546645642,-1228.65,0.00020255,2]
[349978836,1737546645652,-610.2,0.00020255,2]
[349978838,1737546645661,-1735.39,0.00020255,2]
[349978839,1737546645671,-500.0,0.00020255,2]
[349978840,1737546645684,-649.66,0.00020255,2]
[349978841,1737546645702,-2053.5,0.00020255,2]
[349978842,1737546645711,-500.0,0.00020255,2]
[349978843,1737546645721,-578.14,0.00020255,2]
[349978844,1737546645730,-775.56,0.00020255,2]
[349978845,1737546645739,-1874.24,0.00020255,2]
[349978846,1737546645748,-500.0,0.00020255,2]
[349978847,1737546645758,-500.0,0.00020255,2]
[349978848,1737546645767,-500.0,0.00020255,2]
[349978849,1737546645776,-500.0,0.00020255,2]
[349978850,1737546645785,-500.0,0.00020255,2]
[349978851,1737546645795,-500.0,0.00020255,2]
[349978852,1737546645804,-754.88,0.00020255,2]
[349978853,1737546645813,-840.03,0.00020255,2]
[349978854,1737546645823,-500.0,0.00020255,2]
[349978855,1737546645833,-770.49,0.00020255,2]
[349978856,1737546645843,-1624.22,0.00020255,2]
[349978857,1737546645853,-2677.62,0.00020255,2]
[349978858,1737546645862,-206.65399869,0.00020255,2]
[349978859,1737546645871,-1072.02,0.00020255,2]
[349978860,1737546645881,-790.23,0.00020255,2]
[349978861,1737546645890,-500.0,0.00020255,2]
[349978862,1737546645899,-681.13,0.00020255,2]
[349978863,1737546645908,-500.0,0.00020255,2]
[349978864,1737546645917,-688.34,0.00020255,2]
[349978865,1737546645926,-500.0,0.00020255,2]
[349978866,1737546645936,-500.0,0.00020255,2]
[349978867,1737546645945,-1973.8,0.00020255,2]
[349978868,1737546645955,-3053.45,0.00020255,2]
[349978869,1737546645964,-884.23,0.00020255,2]
[349978870,1737546645973,-1162.01,0.00020255,2]
[349978871,1737546645983,-2721.29,0.00020255,2]
[349978872,1737546645992,-500.0,0.00020255,2]
[349978873,1737546646003,-1593.53,0.00020255,2]
[349978874,1737546646014,-500.0,0.00020255,2]
[349978875,1737546646024,-517.78,0.00020255,2]
[349978876,1737546646033,-1029.46,0.00020255,2]
[349978877,1737546646043,-500.0,0.00020255,2]
[349978878,1737546646052,-450.06,0.00020255,2]
[349978879,1737546646062,-822.29,0.00020255,2]
[349978880,1737546646071,-500.0,0.00020255,2]
[349978881,1737546646082,-817.67,0.00020255,2]
[349978882,1737546646092,-500.0,0.00020255,2]
[349978883,1737546646101,-604.74,0.00020255,2]
[349978884,1737546646110,-1000.0,0.00020255,2]
[349978885,1737546646120,-1568.88,0.00020255,2]
[349978886,1737546646129,-500.0,0.00020255,2]
[349978887,1737546646139,-500.0,0.00020255,2]
[349978888,1737546646148,-860.25,0.00020255,2]
[349978889,1737546646157,-500.0,0.00020255,2]
[349978891,1737546646167,-584.35,0.00020255,2]
[349978893,1737546646176,-500.0,0.00020255,2]
[349978894,1737546646186,-1029.28,0.00020255,2]
[349978895,1737546646197,-1488.68,0.00020255,2]
[349978896,1737546646206,-309.90804829,0.00020255,2]
[349978897,1737546646215,-597.69,0.00020255,2]
[349978898,1737546646224,-500.0,0.00020255,2]
[349978899,1737546646234,-582.08,0.00020255,2]
[349978900,1737546646243,-2928.36,0.00020255,2]
[349978901,1737546646252,-500.0,0.00020255,2]
[349978902,1737546646261,-1778.24,0.00020255,2]
[349978903,1737546646270,-1141.9,0.00020255,2]
[349978904,1737546646280,-1685.12,0.00020255,2]
[349978905,1737546646289,-500.0,0.00020255,2]
[349978906,1737546646298,-500.0,0.00020255,2]
[349978907,1737546646308,-500.0,0.00020255,2]
[349978908,1737546646320,-500.0,0.00020255,2]
[349978909,1737546646329,-1692.44,0.00020255,2]
[349978910,1737546646338,-500.0,0.00020255,2]
[349978911,1737546646347,-1404.53,0.00020255,2]
[349978912,1737546646358,-500.0,0.00020255,2]
[349978914,1737546646368,-500.0,0.00020255,2]
[349978916,1737546646377,-500.0,0.00020255,2]
[349978917,1737546646387,-500.0,0.00020255,2]
[349978918,1737546646396,-626.22,0.00020255,2]
[349978919,1737546646405,-500.0,0.00020255,2]
[349978920,1737546646414,-553.98,0.00020255,2]
[349978921,1737546646423,-564.27,0.00020255,2]
[349978922,1737546646433,-500.0,0.00020255,2]
[349978923,1737546646442,-500.0,0.00020255,2]
[349978924,1737546646451,-500.0,0.00020255,2]
[349978925,1737546646460,-500.0,0.00020255,2]
[349978926,1737546646469,-912.85,0.00020255,2]
[349978927,1737546646479,-1621.57,0.00020255,2]
[349978928,1737546646487,-500.0,0.00020255,2]
[349978929,1737546646496,-500.0,0.00020255,2]
[349978930,1737546646505,-500.0,0.00020255,2]
[349978931,1737546646514,-1095.57,0.00020255,2]
[349978932,1737546646524,-564.63,0.00020255,2]
[349978933,1737546646533,-500.0,0.00020255,2]
[349978934,1737546646542,-2371.96,0.00020255,2]
[349978935,1737546646551,-500.0,0.00020255,2]
[349978936,1737546646560,-500.0,0.00020255,2]
[349978937,1737546646569,-500.0,0.00020255,2]
[349978938,1737546646579,-500.0,0.00020255,2]
[349978939,1737546646588,-500.0,0.00020255,2]
[349978940,1737546646598,-950.32,0.00020255,2]
[349978941,1737546646608,-629.86,0.00020255,2]
[349978942,1737546646617,-987.56,0.00020255,2]
[349978943,1737546646626,-500.0,0.00020255,2]
[349978944,1737546646636,-500.0,0.00020255,2]
[349978945,1737546646645,-500.0,0.00020255,2]
[349978946,1737546646654,-638.35,0.00020255,2]
[349978947,1737546646663,-1220.25,0.00020255,2]
[349978948,1737546646672,-500.0,0.00020255,2]
[349978949,1737546646681,-500.0,0.00020255,2]
[349978950,1737546646690,-500.0,0.00020255,2]
[349978951,1737546646699,-1376.38,0.00020255,2]
[349978952,1737546646707,-500.0,0.00020256,2]
[349978953,1737546646716,-500.0,0.00020256,2]
[349978954,1737546646725,-500.0,0.00020256,2]
[349978955,1737546646734,-500.0,0.00020256,2]
[349978956,1737546646743,-500.0,0.00020256,2]
[349978957,1737546646752,-500.0,0.00020256,2]
[349978958,1737546646761,-500.0,0.00020256,2]
[349978959,1737546646770,-500.0,0.00020256,2]
[349978960,1737546646779,-500.0,0.00020256,2]
[349978961,1737546646788,-500.0,0.00020256,2]
[349978962,1737546646797,-500.0,0.00020256,2]
[349978963,1737546646806,-500.0,0.00020256,2]
[349978964,1737546646815,-500.0,0.00020256,2]
[349978965,1737546646824,-500.0,0.00020256,2]
[349978966,1737546646833,-500.0,0.00020256,2]
[349978967,1737546646842,-500.0,0.00020256,2]
[349978968,1737546646852,-500.0,0.00020256,2]
[349978969,1737546646861,-530.06,0.00020256,2]
[349978970,1737546646870,-500.0,0.00020256,2]
[349978971,1737546646879,-500.0,0.00020256,2]
[349978972,1737546646888,-500.0,0.00020256,2]
[349978973,1737546646897,-552.04,0.00020256,2]
[349978974,1737546646906,-500.0,0.00020256,2]
[349978975,1737546646915,-640.45,0.00020256,2]